[Event "EYCC Open-U12 2019"]
[Site "Bratislava"]
[Date "2019.08.07"]
[Round "6.7"]
[White "Lystsov, Leonid"]
[Black "Kuhn, Clement"]
[Result "1/2-1/2"]
[ECO "A36"]
[WhiteElo "2086"]
[BlackElo "1979"]
[Annotator "NA"]
[PlyCount "166"]
[EventDate "2019.08.02"]
[EventType "swiss"]
[EventCountry "SVK"]
[SourceTitle "playchess.com"]
[Source "ChessBase"]
[SourceQuality "1"]
[TimeControl "40/5400+30:1800+30"]

1. c4 {[%emt 0:00:00]} c5 {[%emt 0:00:00]} 2. g3 {[%emt 0:00:00]} Nc6 {[%emt 0:00:00]} 3. Bg2 {[%emt 0:00:00]} g6 {[%emt 0:00:00]} 4. Nc3 {[%emt 0:00:00]} Bg7 {[%emt 0:00:01]} 5. a3 {[%emt 0:00:27]} e5 {[%emt 0:00:33]} 6. b4 {[%emt 0:01:07]} d6 {[%emt 0:00:30]} 7. Rb1 {[%emt 0:16:07]} Nge7 {[%emt 0:02:02]} 8. d3 {[%emt 0:02:05]} O-O {[%emt 0:00:47]} 9. Nf3 {[%emt 0:03:09]} f5 {[%emt 0:02:24]} 10. Bd2 {[%emt 0:01:56]} Rb8 {[%emt 0:04:50]} 11. O-O {[%emt 0:00:49]} b6 {[%emt 0:01:43]} 12. b5 {[%emt 0:07:15]} Nd4 {[%emt 0:03:35]} 13. Nxd4 {[%emt 0:02:12]} cxd4 {[%emt 0:04:47]} 14. Nd5 {[%emt 0:01:56]} h6 {[%emt 0:05:54]} 15. Qc1 {[%emt 0:07:23]} Kh7 {[%emt 0:04:20]} 16. a4 {[%emt 0:01:22]} Bb7 {[%emt 0:00:29]} 17. Qa3 {[%emt 0:00:55]} Nxd5 {[%emt 0:01:56]} 18. Bxd5 {[%emt 0:03:10]} Qd7 {[%emt 0:07:23]} 19. Rfc1 {[%emt 0:10:41]} f4 {[%emt 0:05:18]} 20. Bb4 {[%emt 0:23:57]} Rf6 {[%emt 0:03:37]} 21. Bxb7 {[%emt 0:13:01]} Rxb7 {[%emt 0:00:09]} 22. a5 {[%emt 0:00:27]} Qh3 {[%emt 0:03:50]} 23. axb6 {[%emt 0:01:33]} fxg3 {[%emt 0:02:42]} 24. hxg3 {[%emt 0:00:42]} Rbf7 {[%emt 0:05:59]} 25. Be1 {[%emt 0:00:46]} axb6 {[%emt 0:00:38]} 26. Qa8 {[%emt 0:00:30]} Qg4 {[%emt 0:02:33]} 27. Qe4 {[%emt 0:01:11]} Qg5 {[%emt 0:07:02]} 28. Rc2 {[%emt 0:00:46]} Rf5 {[%emt 0:02:22]} 29. Ra2 {[%emt 0:00:29]} Qf6 {[%emt 0:01:08]} 30. Qg2 {[%emt 0:00:31]} e4 {[%emt 0:09:54]} 31. dxe4 {[%emt 0:00:22]} Rc5 {[%emt 0:00:11]} 32. Rc2 {[%emt 0:00:29]} Rfc7 {[%emt 0:01:13]} 33. Rbc1 {[%emt 0:00:18]} Qe6 {[%emt 0:00:43]} 34. Qf3 {[%emt 0:00:45]} Rxc4 {[%emt 0:00:27]} 35. Rxc4 {[%emt 0:00:29]} Rxc4 {[%emt 0:00:00]} 36. Qb3 {[%emt 0:00:36]} Rxc1 {[%emt 0:01:29]} 37. Qxe6 {[%emt 0:00:04]} Rxe1+ {[%emt 0:00:02]} 38. Kg2 {[%emt 0:00:07]} Rxe2 {[%emt 0:00:13]} 39. Qxd6 {[%emt 0:01:09]} Rxe4 {[%emt 0:00:31]} 40. Qxb6 {[%emt 0:00:00]} d3 {[%emt 0:00:00]} 41. Qa5 {[%emt 0:15:23]} Rd4 {[%emt 0:07:45]} 42. b6 {[%emt 0:07:52]} d2 {[%emt 0:02:11]} 43. b7 {[%emt 0:01:04]} d1=Q {[%emt 0:00:40]} 44. b8=Q {[%emt 0:00:19]} Qc2 {[%emt 0:01:49]} 45. Qaa8 {[%emt 0:08:14]} Qe4+ {[%emt 0:00:40]} 46. Qxe4 {[%emt 0:00:06]} Rxe4 {[%emt 0:00:01]} 47. Qb1 {[%emt 0:01:09]} Rd4 {[%emt 0:00:17]} 48. Kh3 {[%emt 0:00:30]} Rc4 {[%emt 0:00:35]} 49. g4 {[%emt 0:00:31]} Rf4 {[%emt 0:00:45]} 50. Kg3 {[%emt 0:00:33]} Ra4 {[%emt 0:01:22]} 51. f4 {[%emt 0:00:31]} Ra3+ {[%emt 0:00:01]} 52. Kg2 {[%emt 0:00:07]} Ra4 {[%emt 0:02:09]} 53. Kf3 {[%emt 0:00:20]} Ra3+ {[%emt 0:00:12]} 54. Kf2 {[%emt 0:00:56]} Ra4 {[%emt 0:00:40]} 55. Kf3 {[%emt 0:00:18]} Ra3+ {[%emt 0:00:04]} 56. Kg2 {[%emt 0:00:11]} Ra4 {[%emt 0:00:06]} 57. Qc1 {[%emt 0:00:16]} Rd4 {[%emt 0:04:42]} 58. Kf3 {[%emt 0:00:59]} Rd3+ {[%emt 0:00:18]} 59. Ke4 {[%emt 0:00:44]} Rd4+ {[%emt 0:00:08]} 60. Ke3 {[%emt 0:00:02]} Rb4 {[%emt 0:00:50]} 61. Qc2 {[%emt 0:00:49]} Rb6 {[%emt 0:06:29]} 62. Qc7 {[%emt 0:00:44]} Ra6 {[%emt 0:02:49]} 63. Kf3 {[%emt 0:00:16]} Rf6 {[%emt 0:01:40]} 64. Kg3 {[%emt 0:00:18]} Ra6 {[%emt 0:00:30]} 65. Qf7 {[%emt 0:00:36]} Rf6 {[%emt 0:00:09]} 66. Qe7 {[%emt 0:00:48]} Rb6 {[%emt 0:00:17]} 67. Qc7 {[%emt 0:00:16]} Ra6 {[%emt 0:00:05]} 68. Qd7 {[%emt 0:00:45]} Rb6 {[%emt 0:00:06]} 69. Kh4 {[%emt 0:00:32]} Rf6 {[%emt 0:00:22]} 70. Kg3 {[%emt 0:00:29]} Rb6 {[%emt 0:00:08]} 71. Kf3 {[%emt 0:00:30]} Ra6 {[%emt 0:00:12]} 72. Qc7 {[%emt 0:00:16]} Rf6 {[%emt 0:00:07]} 73. Ke4 {[%emt 0:00:13]} Ra6 {[%emt 0:00:09]} 74. g5 {[%emt 0:01:04]} hxg5 {[%emt 0:00:15]} 75. fxg5 {[%emt 0:00:13]} Re6+ {[%emt 0:01:10]} 76. Kd5 {[%emt 0:00:45]} Re1 {[%emt 0:00:48]} 77. Qh2+ {[%emt 0:00:31]} Kg8 {[%emt 0:00:16]} 78. Qf4 {[%emt 0:00:32]} Ra1 {[%emt 0:02:03]} 79. Qe4 {[%emt 0:00:31]} Ra5+ {[%emt 0:00:17]} 80. Ke6 {[%emt 0:00:26]} Rxg5 {[%emt 0:00:22]} 81. Qa8+ {[%emt 0:00:15]} Kh7 {[%emt 0:00:10]} 82. Qh1+ {[%emt 0:00:26]} Rh5 {[%emt 0:00:26]} 83. Qg2 {[%emt 0:00:18]} Re5+ {[%emt 0:00:18]} 1/2-1/2

[Event "EYCC Open-U12 2019"]
[Site "Bratislava"]
[Date "2019.08.07"]
[Round "6.8"]
[White "von Mettenheim, Johannes"]
[Black "Bakiev, Diyor"]
[Result "1/2-1/2"]
[ECO "A56"]
[WhiteElo "1809"]
[BlackElo "2121"]
[Annotator "NA"]
[PlyCount "90"]
[EventDate "2019.08.02"]
[EventType "swiss"]
[EventCountry "SVK"]
[SourceTitle "playchess.com"]
[Source "ChessBase"]
[SourceQuality "1"]
[TimeControl "40/5400+30:1800+30"]

1. d4 {[%emt 0:00:00]} Nf6 {[%emt 0:00:00]} 2. c4 {[%emt 0:00:00]} c5 {[%emt 0:00:04]} 3. Nf3 {[%emt 0:00:00]} cxd4 {[%emt 0:04:49]} 4. Nxd4 {[%emt 0:00:00]} Nc6 {[%emt 0:04:53]} 5. g3 {[%emt 0:02:28]} g6 {[%emt 0:07:47]} 6. Bg2 {[%emt 0:00:09]} Bg7 {[%emt 0:00:28]} 7. Nc2 {[%emt 0:00:46]} O-O {[%emt 0:01:14]} 8. O-O {[%emt 0:00:02]} d6 {[%emt 0:03:26]} 9. Nc3 {[%emt 0:06:28]} Be6 {[%emt 0:05:13]} 10. Ne3 {[%emt 0:01:17]} Qd7 {[%emt 0:03:11]} 11. Bd2 {[%emt 0:06:42]} Rfc8 {[%emt 0:07:06]} 12. Ncd5 {[%emt 0:01:09]} Bh3 {[%emt 0:04:23]} 13. Rc1 {[%emt 0:08:23]} Bxg2 {[%emt 0:00:51]} 14. Kxg2 {[%emt 0:00:02]} Ne4 {[%emt 0:10:36]} 15. b3 {[%emt 0:06:18]} Nd4 {[%emt 0:06:50]} 16. Nc2 {[%emt 0:04:31]} Ne6 {[%emt 0:04:26]} 17. f3 {[%emt 0:02:39]} Nxd2 {[%emt 0:00:52]} 18. Qxd2 {[%emt 0:00:19]} Nc7 {[%emt 0:01:19]} 19. Ncb4 {[%emt 0:05:21]} Ne6 {[%emt 0:07:32]} 20. e4 {[%emt 0:01:47]} Nd4 {[%emt 0:04:41]} 21. Nc2 {[%emt 0:01:40]} Nc6 {[%emt 0:00:38]} 22. Ncb4 {[%emt 0:14:39]} Rf8 {[%emt 0:02:25]} 23. c5 {[%emt 0:03:29]} e6 {[%emt 0:04:18]} 24. Ne3 {[%emt 0:11:16]} Nxb4 {[%emt 0:00:12]} 25. Qxb4 dxc5 {[%emt 0:01:09]} 26. Qxc5 {[%emt 0:05:39]} Rac8 {[%emt 0:02:54]} 27. Qb4 {[%emt 0:00:50]} Bc3 {[%emt 0:00:39]} 28. Rcd1 {[%emt 0:00:58]} Qc7 {[%emt 0:06:56]} 29. Qb5 {[%emt 0:02:13]} Rfd8 {[%emt 0:01:29]} 30. Qe2 {[%emt 0:00:36]} Bg7 {[%emt 0:01:46]} 31. Rxd8+ {[%emt 0:01:03]} Rxd8 {[%emt 0:00:14]} 32. Rd1 {[%emt 0:00:39]} Rxd1 {[%emt 0:00:56]} 33. Qxd1 {[%emt 0:00:53]} b5 {[%emt 0:01:15]} 34. Qc2 {[%emt 0:01:34]} Qxc2+ {[%emt 0:00:53]} 35. Nxc2 {[%emt 0:00:02]} Kf8 {[%emt 0:00:48]} 36. Kf2 {[%emt 0:01:08]} Ke7 {[%emt 0:00:27]} 37. Ke3 {[%emt 0:00:09]} Kd6 {[%emt 0:00:25]} 38. Kd3 {[%emt 0:00:27]} h5 {[%emt 0:00:48]} 39. f4 {[%emt 0:06:02]} e5 {[%emt 0:00:51]} 40. Ne3 {[%emt 0:00:00]} exf4 {[%emt 0:00:00]} 41. gxf4 {[%emt 0:01:11]} Bh6 {[%emt 0:04:21]} 42. Nd5 {[%emt 0:00:27]} f5 {[%emt 0:01:25]} 43. Kd4 {[%emt 0:03:38]} fxe4 {[%emt 0:01:56]} 44. Kxe4 {[%emt 0:00:01]} Bg7 {[%emt 0:02:27]} 45. Nb4 {[%emt 0:02:03]} Bc3 1/2-1/2

[Event "EYCC Open-U12 2019"]
[Site "Bratislava"]
[Date "2019.08.07"]
[Round "6.9"]
[White "Ciric, Pavle"]
[Black "Vagman, Roy"]
[Result "1/2-1/2"]
[ECO "C85"]
[WhiteElo "1987"]
[BlackElo "1941"]
[Annotator "NA"]
[PlyCount "162"]
[EventDate "2019.08.02"]
[EventType "swiss"]
[EventCountry "SVK"]
[SourceTitle "playchess.com"]
[Source "ChessBase"]
[SourceQuality "1"]
[TimeControl "40/5400+30:1800+30"]

1. e4 {[%emt 0:00:00]} e5 {[%emt 0:00:00]} 2. Nf3 {[%emt 0:00:00]} Nc6 {[%emt 0:00:00]} 3. Bb5 {[%emt 0:00:00]} a6 {[%emt 0:00:23]} 4. Ba4 {[%emt 0:00:13]} Nf6 {[%emt 0:00:21]} 5. O-O {[%emt 0:00:05]} Be7 {[%emt 0:00:27]} 6. Bxc6 {[%emt 0:00:05]} dxc6 {[%emt 0:01:30]} 7. d3 {[%emt 0:00:05]} Qd6 {[%emt 0:04:50]} 8. Nbd2 {[%emt 0:02:59]} Be6 {[%emt 0:00:47]} 9. b3 {[%emt 0:03:09]} Nd7 {[%emt 0:04:56]} 10. Bb2 {[%emt 0:00:52]} Bf6 {[%emt 0:01:30]} 11. Re1 {[%emt 0:02:54]} c5 {[%emt 0:02:03]} 12. Qe2 {[%emt 0:04:13]} O-O-O {[%emt 0:02:19]} 13. Nf1 {[%emt 0:03:18]} Nf8 {[%emt 0:08:09]} 14. N3d2 {[%emt 0:08:53]} Ng6 {[%emt 0:01:02]} 15. g3 {[%emt 0:01:07]} h5 {[%emt 0:01:02]} 16. Nc4 {[%emt 0:07:13]} Qd7 {[%emt 0:01:40]} 17. Qe3 {[%emt 0:03:10]} b6 {[%emt 0:03:53]} 18. h4 {[%emt 0:20:11]} Rh6 {[%emt 0:08:14]} 19. Nh2 {[%emt 0:04:19]} Bh3 {[%emt 0:06:36]} 20. Nf3 {[%emt 0:00:34]} Qe6 {[%emt 0:01:24]} 21. Kh2 {[%emt 0:03:42]} Bg4 {[%emt 0:04:16]} 22. a3 {[%emt 0:08:47]} Kb7 {[%emt 0:21:14]} 23. Bc3 {[%emt 0:05:14]} Rd4 {[%emt 0:03:18]} 24. Ng5 {[%emt 0:02:20]} Bxg5 {[%emt 0:00:23]} 25. Qxg5 {[%emt 0:00:28]} f6 {[%emt 0:02:25]} 26. Qe3 {[%emt 0:00:25]} Rd8 {[%emt 0:00:05]} 27. b4 {[%emt 0:01:18]} cxb4 {[%emt 0:00:50]} 28. Bxb4 {[%emt 0:00:32]} Ka8 {[%emt 0:01:57]} 29. Rab1 {[%emt 0:01:08]} Qc6 {[%emt 0:00:52]} 30. Rec1 {[%emt 0:01:23]} Be6 {[%emt 0:00:29]} 31. Nd2 {[%emt 0:00:22]} a5 {[%emt 0:00:31]} 32. Bxa5 {[%emt 0:03:03]} bxa5 {[%emt 0:00:08]} 33. Nb3 {[%emt 0:00:17]} Bxb3 {[%emt 0:01:56]} 34. cxb3 {[%emt 0:00:16]} Qb6 {[%emt 0:00:27]} 35. Qd2 {[%emt 0:01:45]} Rhh8 {[%emt 0:00:55]} 36. b4 {[%emt 0:00:11]} a4 {[%emt 0:03:06]} 37. b5 {[%emt 0:03:48]} Ne7 {[%emt 0:00:57]} 38. Rc4 {[%emt 0:00:13]} Rd4 {[%emt 0:02:40]} 39. Rxd4 {[%emt 0:00:30]} Qxd4 {[%emt 0:00:37]} 40. Rb4 {[%emt 0:00:00]} Qa7 {[%emt 0:00:00]} 41. Qc2 {[%emt 0:00:31]} Kb7 {[%emt 0:04:11]} 42. Rxa4 {[%emt 0:05:43]} Qb6 {[%emt 0:00:17]} 43. Rc4 {[%emt 0:00:34]} Rd8 {[%emt 0:01:03]} 44. Kg2 {[%emt 0:02:42]} Rd4 {[%emt 0:01:04]} 45. Rc3 {[%emt 0:02:09]} Kc8 {[%emt 0:02:21]} 46. Qb3 {[%emt 0:00:42]} Kd7 {[%emt 0:01:22]} 47. Qc2 {[%emt 0:05:29]} Ke8 {[%emt 0:02:03]} 48. a4 {[%emt 0:00:30]} Rd7 {[%emt 0:01:13]} 49. Qa2 {[%emt 0:02:25]} Rd6 {[%emt 0:02:57]} 50. Qa3 {[%emt 0:09:07]} Kd7 {[%emt 0:01:13]} 51. Rc5 {[%emt 0:03:17]} Qa5 {[%emt 0:01:30]} 52. Qb3 {[%emt 0:02:43]} Rd4 {[%emt 0:03:02]} 53. Rc4 {[%emt 0:00:05]} Qd2 {[%emt 0:02:34]} 54. b6 {[%emt 0:07:37]} cxb6 {[%emt 0:06:54]} 55. Qb5+ {[%emt 0:00:05]} Ke6 {[%emt 0:01:54]} 56. Rxd4 {[%emt 0:00:19]} exd4 {[%emt 0:00:07]} 57. Qxb6+ {[%emt 0:00:05]} Kf7 {[%emt 0:00:08]} 58. Qxd4 {[%emt 0:00:03]} Qa2 {[%emt 0:01:37]} 59. Qb4 {[%emt 0:00:42]} Nc6 {[%emt 0:02:50]} 60. Qb7+ {[%emt 0:00:14]} Ne7 {[%emt 0:00:01]} 61. Qb5 {[%emt 0:00:08]} Qc2 {[%emt 0:01:36]} 62. Qxh5+ {[%emt 0:00:06]} g6 {[%emt 0:00:16]} 63. Qb5 {[%emt 0:00:06]} Qc6 {[%emt 0:00:09]} 64. Qb3+ {[%emt 0:00:29]} Qe6 {[%emt 0:00:08]} 65. Qc3 {[%emt 0:00:46]} Qc6 {[%emt 0:00:42]} 66. Qa3 {[%emt 0:01:00]} f5 {[%emt 0:00:31]} 67. Qb3+ {[%emt 0:00:15]} Kf6 {[%emt 0:01:26]} 68. f3 {[%emt 0:00:08]} Qc1 {[%emt 0:00:30]} 69. Qa2 {[%emt 0:00:49]} Nc6 {[%emt 0:01:46]} 70. Qf2 {[%emt 0:00:11]} Qd1 {[%emt 0:00:35]} 71. Qb2+ {[%emt 0:00:04]} Ke6 {[%emt 0:00:20]} 72. exf5+ {[%emt 0:00:18]} gxf5 {[%emt 0:00:15]} 73. Qa2+ {[%emt 0:02:16]} Kd6 {[%emt 0:00:38]} 74. Qa3+ {[%emt 0:01:35]} Kc7 {[%emt 0:00:05]} 75. Qb2 {[%emt 0:02:03]} Qxd3 {[%emt 0:00:52]} 76. Qg7+ {[%emt 0:00:11]} Kd6 {[%emt 0:00:46]} 77. Qf6+ {[%emt 0:01:11]} Kc5 {[%emt 0:00:24]} 78. Qb2 {[%emt 0:00:59]} Nd4 {[%emt 0:00:18]} 79. Qf2 {[%emt 0:00:21]} Kc6 {[%emt 0:01:22]} 80. h5 {[%emt 0:00:16]} Kd5 {[%emt 0:06:40]} 81. h6 {[%emt 0:00:22]} f4 {[%emt 0:00:19]} 1/2-1/2

[Event "EYCC Open-U12 2019"]
[Site "Bratislava"]
[Date "2019.08.07"]
[Round "6.10"]
[White "Tunsjo, Axel"]
[Black "Han, Yichen"]
[Result "0-1"]
[ECO "B71"]
[WhiteElo "2039"]
[BlackElo "2217"]
[Annotator "NA"]
[PlyCount "80"]
[EventDate "2019.08.02"]
[EventType "swiss"]
[EventCountry "SVK"]
[SourceTitle "playchess.com"]
[Source "ChessBase"]
[SourceQuality "1"]
[TimeControl "40/5400+30:1800+30"]

1. e4 {[%emt 0:00:00]} c5 {[%emt 0:00:00]} 2. Nf3 {[%emt 0:00:00]} d6 {[%emt 0:00:00]} 3. d4 {[%emt 0:02:33]} cxd4 {[%emt 0:00:00]} 4. Nxd4 {[%emt 0:00:06]} Nf6 {[%emt 0:00:00]} 5. Nc3 {[%emt 0:00:21]} g6 {[%emt 0:00:00]} 6. f4 {[%emt 0:05:07]} Nc6 {[%emt 0:01:47]} 7. Be2 {[%emt 0:00:36]} Bg7 {[%emt 0:00:38]} 8. Be3 {[%emt 0:00:29]} O-O {[%emt 0:03:17]} 9. Qd2 {[%emt 0:10:10]} Nxd4 {[%emt 0:05:10]} 10. Bxd4 {[%emt 0:00:52]} Be6 {[%emt 0:03:41]} 11. O-O {[%emt 0:01:48]} Rc8 {[%emt 0:02:21]} 12. Rad1 {[%emt 0:06:39]} a6 {[%emt 0:02:33]} 13. Kh1 {[%emt 0:08:47]} b5 {[%emt 0:02:31]} 14. a3 {[%emt 0:01:07]} Bc4 {[%emt 0:05:14]} 15. Bxc4 {[%emt 0:07:24]} Rxc4 {[%emt 0:01:52]} 16. Bxf6 {[%emt 0:05:29]} Bxf6 {[%emt 0:00:26]} 17. e5 {[%emt 0:00:01]} Bg7 {[%emt 0:01:00]} 18. Rf3 {[%emt 0:03:01]} Qc8 {[%emt 0:13:41]} 19. exd6 {[%emt 0:01:24]} exd6 {[%emt 0:00:08]} 20. Nd5 {[%emt 0:03:35]} Re8 {[%emt 0:09:38]} 21. c3 {[%emt 0:06:44]} Rce4 {[%emt 0:00:47]} 22. Rf2 {[%emt 0:04:46]} Qc4 {[%emt 0:13:37]} 23. f5 {[%emt 0:09:59]} Re2 {[%emt 0:04:01]} 24. fxg6 {[%emt 0:00:04]} hxg6 {[%emt 0:01:46]} 25. Rxe2 {[%emt 0:00:17]} Rxe2 {[%emt 0:00:49]} 26. Qg5 {[%emt 0:01:38]} Qe4 {[%emt 0:03:44]} 27. Rf1 {[%emt 0:09:29]} f6 {[%emt 0:01:53]} 28. Nxf6+ {[%emt 0:05:56]} Bxf6 {[%emt 0:00:07]} 29. Qg3 {[%emt 0:00:15]} Bh4 {[%emt 0:01:10]} 30. Qh3 {[%emt 0:00:22]} Re1 {[%emt 0:01:37]} 31. Qc8+ {[%emt 0:00:17]} Qe8 {[%emt 0:00:05]} 32. Qxe8+ {[%emt 0:00:54]} Rxe8 {[%emt 0:00:05]} 33. g3 {[%emt 0:00:03]} Bd8 {[%emt 0:00:56]} 34. Rf2 {[%emt 0:00:27]} Kg7 {[%emt 0:01:07]} 35. Kg2 {[%emt 0:00:06]} Re6 {[%emt 0:00:40]} 36. Rd2 {[%emt 0:00:27]} Bg5 {[%emt 0:00:21]} 37. Rc2 {[%emt 0:00:22]} Re5 {[%emt 0:00:17]} 38. h4 {[%emt 0:00:17]} Bh6 {[%emt 0:00:09]} 39. Kf3 {[%emt 0:00:36]} Re3+ {[%emt 0:00:06]} 40. Kf2 {[%emt 0:00:00]} Rd3 {[%emt 0:00:00]} 0-1

[Event "EYCC Open-U12 2019"]
[Site "Bratislava"]
[Date "2019.08.07"]
[Round "6.11"]
[White "Strybuk, Artsiom I"]
[Black "Chyndygyr, Tamerlan"]
[Result "1-0"]
[ECO "A55"]
[WhiteElo "2193"]
[BlackElo "2018"]
[Annotator "NA"]
[PlyCount "181"]
[EventDate "2019.08.02"]
[EventType "swiss"]
[EventCountry "SVK"]
[SourceTitle "playchess.com"]
[Source "ChessBase"]
[SourceQuality "1"]
[TimeControl "40/5400+30:1800+30"]

1. d4 {[%emt 0:00:00]} Nf6 {[%emt 0:00:00]} 2. c4 {[%emt 0:00:00]} d6 {[%emt 0:00:36]} 3. Nf3 {[%emt 0:00:00]} Nbd7 {[%emt 0:00:06]} 4. Nc3 {[%emt 0:00:00]} e5 {[%emt 0:00:23]} 5. e4 {[%emt 0:00:13]} Be7 {[%emt 0:00:12]} 6. Be2 {[%emt 0:00:08]} O-O {[%emt 0:00:18]} 7. O-O {[%emt 0:00:12]} c6 {[%emt 0:00:19]} 8. Qc2 {[%emt 0:00:25]} a6 {[%emt 0:00:23]} 9. Rd1 {[%emt 0:01:37]} Qc7 {[%emt 0:00:39]} 10. h3 {[%emt 0:03:42]} b5 {[%emt 0:03:36]} 11. a3 {[%emt 0:01:01]} Bb7 {[%emt 0:06:13]} 12. Be3 {[%emt 0:01:05]} Rac8 {[%emt 0:01:44]} 13. Rac1 {[%emt 0:01:59]} Rfd8 {[%emt 0:01:41]} 14. Qb1 {[%emt 0:08:43]} Qb8 {[%emt 0:03:58]} 15. cxb5 {[%emt 0:07:07]} cxb5 {[%emt 0:03:30]} 16. d5 {[%emt 0:01:34]} Rc7 {[%emt 0:05:13]} 17. Rc2 {[%emt 0:05:39]} Rdc8 {[%emt 0:07:23]} 18. Rdc1 {[%emt 0:01:14]} Bd8 {[%emt 0:05:22]} 19. Nd2 {[%emt 0:01:33]} Ba8 {[%emt 0:13:56]} 20. Na2 {[%emt 0:10:31]} Rxc2 {[%emt 0:02:14]} 21. Rxc2 {[%emt 0:00:20]} Rxc2 {[%emt 0:00:04]} 22. Qxc2 {[%emt 0:00:05]} Qc7 {[%emt 0:00:10]} 23. Qxc7 {[%emt 0:06:13]} Bxc7 {[%emt 0:00:01]} 24. a4 {[%emt 0:03:24]} bxa4 {[%emt 0:01:55]} 25. Bxa6 {[%emt 0:01:05]} Nc5 {[%emt 0:11:21]} 26. Bxc5 {[%emt 0:00:23]} dxc5 {[%emt 0:00:01]} 27. Bb5 {[%emt 0:08:54]} Kf8 {[%emt 0:19:07]} 28. Bxa4 {[%emt 0:01:11]} Bb7 {[%emt 0:00:38]} 29. Bb5 {[%emt 0:04:28]} Ne8 {[%emt 0:01:43]} 30. Nc4 {[%emt 0:01:36]} f5 {[%emt 0:00:53]} 31. f3 {[%emt 0:00:16]} Nf6 {[%emt 0:00:35]} 32. Nc3 {[%emt 0:01:36]} Ke7 {[%emt 0:00:03]} 33. Kf2 {[%emt 0:01:00]} g5 {[%emt 0:00:30]} 34. Ke3 {[%emt 0:05:54]} h5 {[%emt 0:01:42]} 35. Kd3 {[%emt 0:01:32]} fxe4+ {[%emt 0:03:37]} 36. fxe4 {[%emt 0:00:25]} h4 {[%emt 0:00:17]} 37. Ne3 {[%emt 0:06:12]} Bc8 {[%emt 0:00:12]} 38. Na4 {[%emt 0:06:03]} Nh5 {[%emt 0:02:51]} 39. Nxc5 {[%emt 0:02:57]} Nf4+ {[%emt 0:00:04]} 40. Kd2 {[%emt 0:00:00]} Ba5+ {[%emt 0:00:00]} 41. Kd1 {[%emt 0:02:51]} g4 {[%emt 0:05:39]} 42. Nxg4 {[%emt 0:10:25]} Bxg4+ {[%emt 0:12:18]} 43. hxg4 {[%emt 0:00:13]} Nxg2 {[%emt 0:00:12]} 44. Ke2 {[%emt 0:06:32]} h3 {[%emt 0:10:31]} 45. Kf2 {[%emt 0:04:59]} Bb6 {[%emt 0:05:03]} 46. b4 {[%emt 0:00:08]} Ne3 {[%emt 0:00:17]} 47. Kg3 {[%emt 0:08:05]} Nxg4 {[%emt 0:02:47]} 48. Be2 {[%emt 0:00:07]} Ne3 {[%emt 0:03:08]} 49. Kxh3 {[%emt 0:01:03]} Nc2 {[%emt 0:00:30]} 50. Nd3 {[%emt 0:00:19]} Kd6 {[%emt 0:00:30]} 51. Kg3 {[%emt 0:01:01]} Be3 {[%emt 0:00:27]} 52. Bd1 {[%emt 0:01:10]} Nd4 {[%emt 0:00:32]} 53. Kg4 {[%emt 0:01:00]} Bd2 {[%emt 0:00:21]} 54. Kh5 {[%emt 0:01:04]} Nb5 {[%emt 0:00:20]} 55. Kg6 {[%emt 0:02:02]} Nc7 {[%emt 0:00:18]} 56. Bb3 {[%emt 0:00:44]} Na6 {[%emt 0:01:05]} 57. Kf5 {[%emt 0:03:05]} Nxb4 {[%emt 0:00:29]} 58. Nxe5 {[%emt 0:00:05]} Bc3 {[%emt 0:00:25]} 59. Nc4+ {[%emt 0:00:21]} Ke7 {[%emt 0:00:35]} 60. d6+ {[%emt 0:00:29]} Kd8 {[%emt 0:00:10]} 61. e5 {[%emt 0:00:26]} Nc6 {[%emt 0:00:27]} 62. e6 {[%emt 0:01:50]} Nd4+ {[%emt 0:00:14]} 63. Kf6 {[%emt 0:00:04]} Nc6+ {[%emt 0:01:01]} 64. Kf7 {[%emt 0:00:30]} Bb4 {[%emt 0:00:04]} 65. Ba4 {[%emt 0:00:47]} Ne7 {[%emt 0:00:53]} 66. dxe7+ {[%emt 0:00:38]} Bxe7 {[%emt 0:00:02]} 67. Ne5 {[%emt 0:01:01]} Ba3 {[%emt 0:00:14]} 68. Bd7 {[%emt 0:00:42]} Bd6 {[%emt 0:00:17]} 69. Nc6+ {[%emt 0:00:11]} Kc7 {[%emt 0:00:02]} 70. e7 {[%emt 0:00:08]} Bxe7 {[%emt 0:00:03]} 71. Kxe7 {[%emt 0:00:03]} Kb6 {[%emt 0:00:06]} 72. Kd6 {[%emt 0:00:08]} Kb5 {[%emt 0:00:05]} 73. Be6 {[%emt 0:00:26]} Ka4 {[%emt 0:00:08]} 74. Kc5 {[%emt 0:00:03]} Ka3 {[%emt 0:00:06]} 75. Kc4 {[%emt 0:00:21]} Kb2 {[%emt 0:00:05]} 76. Nd4 {[%emt 0:00:12]} Kb1 {[%emt 0:00:05]} 77. Kc3 {[%emt 0:00:32]} Ka1 {[%emt 0:00:04]} 78. Nc2+ {[%emt 0:00:41]} Kb1 {[%emt 0:00:04]} 79. Bd5 {[%emt 0:00:31]} Kc1 {[%emt 0:00:01]} 80. Ba2 {[%emt 0:00:05]} Kd1 {[%emt 0:00:02]} 81. Nd4 {[%emt 0:00:06]} Kc1 {[%emt 0:00:04]} 82. Ne2+ {[%emt 0:00:04]} Kd1 {[%emt 0:00:04]} 83. Kd3 {[%emt 0:00:04]} Ke1 {[%emt 0:00:03]} 84. Ke3 {[%emt 0:00:05]} Kd1 {[%emt 0:00:05]} 85. Bb3+ {[%emt 0:00:05]} Ke1 {[%emt 0:00:03]} 86. Bc2 {[%emt 0:00:06]} Kf1 {[%emt 0:00:03]} 87. Nf4 {[%emt 0:00:08]} Kg1 {[%emt 0:00:05]} 88. Kf3 {[%emt 0:00:12]} Kh2 {[%emt 0:00:03]} 89. Bd3 {[%emt 0:00:12]} Kg1 {[%emt 0:00:05]} 90. Kg3 {[%emt 0:00:02]} Kh1 {[%emt 0:00:10]} 91. Bc4 {[%emt 0:00:02]} 1-0